Workbook

Sheet Starting menu

Sheet Fuelling motorway or locally
C8: Select your starting-points below
B9: Area
B10: Market segment
B11: Vehicle type
C12: =CONCATENATE(C10,C11) -> 
C13: Starting-points | D13: Fill in other values below (required)
B14: Fuelling volume required (litres) | C14: =IF(OR(C9="",C10="",C11=""),"",IF(D14="","",D14)) -> 
B15: Length of detour (kilometres) | C15: =IF(OR(C9="",C10="",C11=""),"",IF(D15="","",D15)) -> 
C17: Starting-points | D17: If desired, fill in other values below
B18: Motorway fuel price (euro per litre) | C18: =IF(OR(C9="",C10="",C11=""),"",IF(D18="",HLOOKUP(C12,Data!B4:AQ11,2,0),D18)) -> 
B19: Local fuel price (euro per litre) | C19: =IF(OR(C9="",C10="",C11=""),"",IF(D19="",C18-0.1,D19)) -> 
B20: Difference in fuel price (euro per litre) | C20: =IF(OR(C9="",C10="",C11=""),"",IF(D20="",C18-C19,D20)) -> 
C22: Starting-points | D22: If desired, fill in other values below
B23: Average speed (km/h) | C23: =IF(OR(C9="",C10="",C11=""),"",IF(D23="",HLOOKUP(C12,Data!B4:AQ11,7,),D23)) -> 
B24: Extra time required (in minutes) | C24: =IF(OR(C9="",C10="",C11="",C15="",C23=""),"",IF(D24="",C15/C23*60,D24)) -> 
C26: Starting-points | D26: If desired, fill in other values below
B27: Costs per hour | C27: =IF(OR(C9="",C10="",C11=""),"",IF(D27="",HLOOKUP(C12,Data!B4:AQ11,6,0),D27)) -> 
C29: Your results
B30: Costs of detour and fuelling locally | C30: =IF(OR(C9="",C10="",C11="",C15=""),"",C24/60*C27) -> 
B31: Advantage of detour and fuelling locally | C31: =IF(OR(C9="",C10="",C11="",C14=""),"",C20*C14) -> 
B32: Total | C32: =IF(OR(C9="",C10="",C11="",C15="",C14=""),"",C31-C30) -> 
B33: Conclusion | C33: =IF(OR(C9="",C10="",C11="",C15="",C14=""),"",IF(C32=0,"NO DIFFERENCE",IF(C32>5%*C30,"DETOUR SIGNIFICANTLY CHEAPER",IF(AND(C32>0,C32<=5%*C30),"DETOUR SOMETHING CHEAPER",IF(AND(C32>=-5%*C30,C32<0),"DETOUR SOMETHING MORE EXPENSIVE","DETOUR MORE EXPENSIVE"))))) -> 

Sheet Preferred fuel station or else
C8: Select your starting-points below
B9: Area
B10: Market segment
B11: Vehicle type
C12: =C10&C11 -> 
C13: Starting-points | D13: Fill in values below (required)
B14: Fuelling volume required (in litres) | C14: =IF(OR(C9="",C10="",C11=""),"",IF(D14="","",D14)) -> 
B15: Length of detour (kilometres) | C15: =IF(OR(C9="",C10="",C11=""),"",IF(D15="","",D15)) -> 
B16: Extra waiting time involved (in minutes) | C16: =IF(OR(C9="",C10="",C11=""),"",IF(D16="","",D16)) -> 
C18: Starting-points | D18: If desired, fill in other values below
B19: Fuel price elsewhere (euro per litre) | C19: =IF(OR(C9="",C10="",C11=""),"",IF(D19="",C20+0.2,D19)) -> 
B20: Fuel price at preferred fuel station (euro per litre) | C20: =IF(OR(C9="",C10="",C11=""),"",IF(D20="",HLOOKUP(C12,Data!B4:AQ11,3,0),D20)) -> 
B21: Difference in fuel price (euro per litre) | C21: =IF(OR(C9="",C10="",C11=""),"",IF(D21="",C19-C20,D21)) -> 
C23: Starting-points | D23: If desired, fill in other values below
B24: Average speed (km/h) | C24: =IF(OR(C9="",C10="",C11=""),"",IF(D24="",HLOOKUP(C12,Data!B4:AQ11,7,),D24)) -> 
B25: Extra time required for detour (in minutes) | C25: =IF(OR(C9="",C10="",C11="",C15="",C24=""),"",IF(D25="",C15/C24*60,D25)) -> 
B26: Total extra time required (in minutes) | C26: =IF(OR(C9="",C10="",C11="",C15="",C16="",C24=""),"",C16+C25) -> 
C28: Starting-points | D28: If desired, fill in other values below
B29: Costs per hour | C29: =IF(OR(C9="",C10="",C11=""),"",IF(D29="",HLOOKUP(C12,Data!B4:AQ11,6,0),D29)) -> 
B30: Fixed costs per hour* | C30: =IF(OR(C9="",C10="",C11=""),"",IF(D30="",HLOOKUP(C12,Data!B4:AQ11,8,0),D30)) ->  | E30: * Fixed costs cover the total costs minus the variable costs (depreciation, fuel, tyres and maintenance & repair)
C32: Your results
B33: Costs of detour, waiting times at preferred fuel station | C33: =IF(OR(C9="",C10="",C11="",C15="",C16=""),"",C25/60*C29+C16/60*C30) -> 
B34: Advantage implied by fuelling at preferred fuel station | C34: =IF(OR(C9="",C10="",C11="",C14=""),"",C21*C14) -> 
B35: Total | C35: =IF(OR(C9="",C10="",C11="",C14="",C15="",C16=""),"",C34-C33) -> 
B36: Conclusion | C36: =IF(OR(C9="",C10="",C11="",C14="",C15="",C16=""),"",IF(C35=0,"NO DIFFERENCE",IF(C35>5%*C33,"DETOUR SIGNIFICANTLY CHEAPER",IF(AND(C35>0,C35<=5%*C33),"DETOUR SOMETHING CHEAPER",IF(AND(C35>=-5%*C33,C35<0),"DETOUR SOMETHING MORE EXPENSIVE","DETOUR MORE EXPENSIVE"))))) -> 

Sheet Join queue or detour
C8: Select your starting-points below
B9: Area
B10: Market segment
B11: Vehicle type
C12: =C10&C11 -> 
C13: Starting-points | D13: Fill in values below (required)
B14: Length of detour (kilometres) | C14: =IF(OR(C9="",C10="",C11=""),"",IF(D14="","",D14)) -> 
B15: Toll charges for detour (in euro) | C15: =IF(OR(C9="",C10="",C11=""),"",IF(D15="","",D15)) -> 
B16: Time involved in queueing up (in minutes) | C16: =IF(OR(C9="",C10="",C11=""),"",IF(D16="","",D16)) -> 
C18: Starting-points | D18: If desired, fill in other values below
B19: Costs per kilometre | C19: =IF(OR(C9="",C10="",C11=""),"",IF(D19="",HLOOKUP(C12,Data!B4:AQ11,5,0),D19)) -> 
B20: Costs per hour | C20: =IF(OR(C9="",C10="",C11=""),"",IF(D20="",HLOOKUP(C12,Data!B4:AQ11,6,0),D20)) -> 
C22: Your results
B23: Costs involved in joining the queue | C23: =IF(OR(C9="",C10="",C11="",C14="",C16=""),"",C16/60*C20) -> 
B24: Costs of detour | C24: =IF(OR(C9="",C10="",C11="",C14="",C15="",C16=""),"",C14*C19+C15) -> 
B25: Total | C25: =IF(OR(C9="",C10="",C11="",C14="",C15="",C16=""),"",C23-C24) -> 
B26: Conclusion | C26: =IF(OR(C9="",C10="",C11="",C14="",C15="",C16=""),"",IF(C25=0,"NO DIFFERENCE",IF(C25>5%*C23,"DETOUR SIGNIFICANTLY CHEAPER",IF(AND(C25>0,C25<=5%*C23),"DETOUR SOMETHING CHEAPER",IF(AND(C25>=-5%*C23,C25<0),"DETOUR SOMEHTING MORE EXPENSIVE","DETOUR MORE EXPENSIVE"))))) -> 

Sheet Shortest vs. quickest route
C8: Select your starting-points below
B9: Area
B10: Market segment
B11: Vehicle type
C12: =C10&C11 -> 
C13: Starting-points | D13: Fill in values below (required)
B14: Length of shortest route (kilometres) | C14: =IF(OR(C9="",C10="",C11=""),"",IF(D14="","",D14)) -> 
B15: Length of quickest route (kilometres) | C15: =IF(OR(C9="",C10="",C11=""),"",IF(D15="","",D15)) -> 
B16: Time involved in taking shortest route (minutes) | C16: =IF(OR(C9="",C10="",C11=""),"",IF(D16="","",D16)) -> 
B17: Time involved in taking quickest route (minutes) | C17: =IF(OR(C9="",C10="",C11=""),"",IF(D17="","",D17)) -> 
C19: Starting-points | D19: If desired, fill in other values below
B20: Costs per kilometre | C20: =IF(OR(C9="",C10="",C11=""),"",IF(D20="",HLOOKUP(C12,Data!B4:AQ11,5,0),D20)) -> 
B21: Costs per hour | C21: =IF(OR(C9="",C10="",C11=""),"",IF(D21="",HLOOKUP(C12,Data!B4:AQ11,6,0),D21)) -> 
C23: Your results
B24: Cost benefit shortest route | C24: =IF(OR(C9="",C10="",C11="",C14="",C15=""),"",IF(C14>C15,"KORTSTE ROUTE IS NOOIT LANGER DAN DE SNELSTE ROUTE",(C15-C14)*C20)) -> 
B25: Cost benefit quickest route | C25: =IF(OR(C9="",C10="",C11="",C16="",C17=""),"",IF(C17>C16,"SNELSTE ROUTE DUURT NOOIT LANGER DAN KORTSTE ROUTE",(C16-C17)/60*C21)) -> 
B26: Total | C26: =IF(OR(C9="",C10="",C11="",C17="",C14=""),"",C24-C25) -> 
B27: Conclusion | C27: =IF(OR(C9="",C10="",C11="",C14="",C17=""),"",IF(C26=0,"NO DIFFERENCE",IF(C26>5%*C24,"SHORTEST ROUTE SIGNIFICANTLY CHEAPER",IF(AND(C26>0,C26<=5%*C24),"SHORTEST ROUTE SOMETHING CHEAPER",IF(AND(C26>=-5%*C24,C26<0),"QUICKEST ROUTE SOMETHING CHEAPER","QUICKEST ROUTE SIGNIFICANTLY CHEAPER"))))) -> 

Sheet Home or (overnight) parking
C9: Select your starting-points below
B10: Area
B11: Market segment
B12: Vehicle type
C13: =C11&C12 -> 
C14: Starting-points | D14: Fill in values below (required)
B15: Kilometre distance to truck park (A) | C15: =IF(OR(C10="",C11="",C12=""),"",IF(D15="","",D15)) -> 
B16: Kilometre distance from truck park to next address (B) | C16: =IF(OR(C10="",C11="",C12=""),"",IF(D16="","",D16)) -> 
B17: Kilometre distance to work location (C) | C17: =IF(OR(C10="",C11="",C12=""),"",IF(D17="","",D17)) -> 
B18: Kilometre distance from work location to next address (D) | C18: =IF(OR(C10="",C11="",C12=""),"",IF(D18="","",D18)) -> 
B19: Driver's travelling costs back home and return to truck park (in euro) | C19: =IF(OR(C10="",C11="",C12=""),"",IF(D19="","",D19)) -> 
B20: Truck parking charges (in euro) | C20: =IF(OR(C10="",C11="",C12=""),"",IF(D20="","",D20)) -> 
C22: Starting-points | D22: If desired, fill in other values below
B23: Costs per kilometre | C23: =IF(OR(C10="",C11="",C12=""),"",IF(D23="",HLOOKUP(C13,Data!B4:AQ11,5,0),D23)) -> 
B24: Costs per hour | C24: =IF(OR(C10="",C11="",C12=""),"",IF(D24="",HLOOKUP(C13,Data!B4:AQ11,6,0),D24)) -> 
C26: Your results
B27: Costs for return home/return to work location | C27: =IF(OR(C10="",C11="",C12="",C17="",C18=""),"",(C17+C18)*C23) -> 
B28: Truck parking charges | C28: =IF(OR(C10="",C11="",C12="",C15="",C16="",C19="",C20=""),"",(C15+C16)*C23+C19+C20) -> 
B29: Total | C29: =IF(OR(C10="",C11="",C12="",C27="",C28=""),"",C27-C28) -> 
B30: Conclusion | C30: =IF(OR(C10="",C11="",C12="",C27="",C28=""),"",IF(C29=0,"NO DIFFERENCE",IF(C29>5%*C27,"PARKING SIGNIFICANTLY CHEAPER",IF(AND(C29>0,C29<=5%*C27),"PARKING SOMETHING CHEAPER",IF(AND(C29>=-5%*C27,C29<0),"BACK HOME SOMETHING CHEAPER","BACK HOME SIGNIFICANTLY CHEAPER"))))) -> 

Sheet Costs due to road closures
C8: Select your starting-points below
B9: Area
B10: Market segment
B11: Vehicle type
C12: =C10&C11 -> 
C13: Starting-points | D13: Fill in values below (required)
B14: Average number of daily trips passing road closure | C14: =IF(OR(C9="",C10="",C11=""),"",IF(D14="","",D14)) -> 
B15: Duration of road being closed (in days) | C15: =IF(OR(C9="",C10="",C11=""),"",IF(D15="","",D15)) -> 
B16: Length of detour (kms) per individual trip due to closure | C16: =IF(OR(C9="",C10="",C11=""),"",IF(D16="","",D16)) -> 
C18: Starting-points | D18: If desired, fill in other values below
B19: Total length of detour (kilometres) | C19: =IF(OR(C9="",C10="",C11="",C14="",C15="",C16=""),"",IF(D19="",C14*C15*C16,D19)) -> 
C21: Starting-points | D21: If desired, fill in other values below
B22: Costs per kilometre | C22: =IF(OR(C9="",C10="",C11=""),"",IF(D22="",HLOOKUP(C12,Data!B4:AQ11,5,0),D22)) -> 
C24: Your results
B25: Total costs of road closure | C25: =IF(OR(C9="",C10="",C11="",C19=""),"",C19*C22) -> 

Sheet Data (hidden)
B1: 1 | C1: 2 | D1: 3 | E1: 4 | F1: 5 | G1: 6 | H1: 7 | I1: 8 | J1: 9 | K1: 10 | L1: 11 | M1: 12 | N1: 13 | O1: 14 | P1: 15 | Q1: 16 | R1: 17 | S1: 18 | T1: 19 | U1: 20 | V1: 21 | W1: 22 | X1: 23 | Y1: 24 | Z1: 25 | AA1: 26 | AB1: 27 | AC1: 28 | AD1: 29 | AE1: 30 | AF1: 31 | AG1: 32 | AH1: 33 | AI1: 34 | AJ1: 35 | AK1: 36 | AL1: 37 | AM1: 38 | AN1: 40 | AO1: 42 | AP1: 44 | AQ1: 46
A2: Market segment | B2: General distribution traffic | C2: General distribution traffic | D2: General distribution traffic | E2: General distribution traffic | F2: General distribution traffic | G2: Truck load transport | H2: Truck load transport | I2: Refrigerated transport | J2: Refrigerated transport | K2: Refrigerated transport | L2: Refrigerated transport | M2: Refrigerated transport | N2: Refrigerated transport | O2: Sea container transport | P2: Tipper transport | Q2: Tipper transport | R2: Tank transport | S2: Bulk transport | T2: super lorries (LHVs) | U2: super lorries (LHVs) | V2: Transport to Germany | W2: Transport to Germany | X2: Transport to France | Y2: Transport to France | Z2: Transport to Italy | AA2: Transport to Italy | AB2: Transport to Spain | AC2: Transport to Spain | AD2: Transport to Poland | AE2: Transport to Poland | AF2: Transport to England | AG2: Transport to England | AH2: Refrigerated transport Germany | AI2: Refrigerated transport France | AJ2: Refrigerated transport Italy | AK2: Refrigerated transport Spain | AL2: Refrigerated transport Poland | AM2: Tank transport Germany | AN2: Tank transport France | AO2: Tank transport Italy | AP2: Tank transport Spain | AQ2: Tank transport Poland
A3: Vehicle type | B3: Light truck <12 tons | C3: Truck 12-16 tons | D3: Truck, 16 tons and over | E3: Truck + trailer | F3: Tractor + semi-trailer | G3: Truck + trailer | H3: Tractor + semi-trailer | I3: Solo, including refrigerator aggregate | J3: Solo, isotherm | K3: Truck + trailer, incl. refrigerator aggregate | L3: Truck + trailer, isotherm | M3: Tractor + semi-trailer, incl. refrigerator aggregate | N3: Tractor + semi-trailer, isotherm | O3: Tractor + semi-trailer chassis | P3: Solo truck | Q3: truck + trailer | R3: Tractor + semi-trailer | S3: Tractor + semi-trailer | T3: Tractor + semi-trailer + central axle trailer | U3: Truck + dolly + semi-trailer | V3: Truck + trailer | W3: Tractor + semi-trailer | X3: Truck + trailer | Y3: Tractor + semi-trailer | Z3: Truck + trailer | AA3: Tractor + semi-trailer | AB3: Truck + trailer | AC3: Tractor + semi-trailer | AD3: Truck + trailer | AE3: Tractor + semi-trailer | AF3: Tractor + semi-trailer; via Eurotunnel | AG3: Tractor + semi-trailer; via ferry | AH3: Tractor + semi-trailer | AI3: Tractor + semi-trailer | AJ3: Tractor + semi-trailer | AK3: Tractor + semi-trailer | AL3: Tractor + semi-trailer | AM3: Tractor + semi-trailer | AN3: Tractor + semi-trailer | AO3: Tractor + semi-trailer | AP3: Tractor + semi-trailer | AQ3: Tractor + semi-trailer
A4: A2 & A3 | B4: =B2&B3 -> General distribution trafficLight truck <12 tons | C4: General distribution trafficTruck 12-16 tons | D4: General distribution trafficTruck, 16 tons and over | E4: =E2&E3 -> General distribution trafficTruck + trailer | F4: =F2&F3 -> General distribution trafficTractor + semi-trailer | G4: =G2&G3 -> Truck load transportTruck + trailer | H4: Truck load transportTractor + semi-trailer | I4: Refrigerated transportSolo, including refrigerator aggregate | J4: Refrigerated transportSolo, isotherm | K4: Refrigerated transportTruck + trailer, incl. refrigerator aggregate | L4: Refrigerated transportTruck + trailer, isotherm | M4: Refrigerated transportTractor + semi-trailer, incl. refrigerator aggregate | N4: Refrigerated transportTractor + semi-trailer, isotherm | O4: Sea container transportTractor + semi-trailer chassis | P4: Tipper transportSolo truck | Q4: Tipper transporttruck + trailer | R4: Tank transportTractor + semi-trailer | S4: Bulk transportTractor + semi-trailer | T4: super lorries (LHVs)Tractor + semi-trailer + central axle trailer | U4: super lorries (LHVs)Truck + dolly + semi-trailer | V4: Transport to GermanyTruck + trailer | W4: Transport to GermanyTractor + semi-trailer | X4: Transport to FranceTruck + trailer | Y4: Transport to FranceTractor + semi-trailer | Z4: Transport to ItalyTruck + trailer | AA4: Transport to ItalyTractor + semi-trailer | AB4: Transport to SpainTruck + trailer | AC4: Transport to SpainTractor + semi-trailer | AD4: Transport to PolandTruck + trailer | AE4: Transport to PolandTractor + semi-trailer | AF4: Transport to EnglandTractor + semi-trailer; via Eurotunnel | AG4: Transport to EnglandTractor + semi-trailer; via ferry | AH4: Refrigerated transport GermanyTractor + semi-trailer | AI4: Refrigerated transport FranceTractor + semi-trailer | AJ4: Refrigerated transport ItalyTractor + semi-trailer | AK4: Refrigerated transport SpainTractor + semi-trailer | AL4: Refrigerated transport PolandTractor + semi-trailer | AM4: Tank transport GermanyTractor + semi-trailer | AN4: Tank transport FranceTractor + semi-trailer | AO4: Tank transport ItalyTractor + semi-trailer | AP4: Tank transport SpainTractor + semi-trailer | AQ4: Tank transport PolandTractor + semi-trailer
A5: Motorway fuel price (euro per litre) | B5: 1.2 | C5: 1.2 | D5: 1.2 | E5: 1.2 | F5: 1.2 | G5: 1.2 | H5: 1.2 | I5: 1.2 | J5: 1.2 | K5: 1.2 | L5: 1.2 | M5: 1.2 | N5: 1.2 | O5: 1.2 | P5: 1.2 | Q5: 1.2 | R5: 1.2 | S5: 1.2 | T5: 1.2 | U5: 1.2 | V5: 1.2 | W5: 1.2 | X5: 1.2 | Y5: 1.2 | Z5: 1.2 | AA5: 1.2 | AB5: 1.2 | AC5: 1.2 | AD5: 1.2 | AE5: 1.2 | AF5: 1.2 | AG5: 1.2 | AH5: 1.2 | AI5: 1.2 | AJ5: 1.2 | AK5: 1.2 | AL5: 1.2 | AM5: 1.2 | AN5: 1.2 | AO5: 1.2 | AP5: 1.2 | AQ5: 1.2
A6: Luxemburg fuel price (euro per litre) | B6: 1.01 | C6: 1.01 | D6: 1.01 | E6: 1.01 | F6: 1.01 | G6: 1.01 | H6: 1.01 | I6: 1.01 | J6: 1.01 | K6: 1.01 | L6: 1.01 | M6: 1.01 | N6: 1.01 | O6: 1.01 | P6: 1.01 | Q6: 1.01 | R6: 1.01 | S6: 1.01 | T6: 1.01 | U6: 1.01 | V6: 1.01 | W6: 1.01 | X6: 1.01 | Y6: 1.01 | Z6: 1.01 | AA6: 1.01 | AB6: 1.01 | AC6: 1.01 | AD6: 1.01 | AE6: 1.01 | AF6: 1.01 | AG6: 1.01 | AH6: 1.01 | AI6: 1.01 | AJ6: 1.01 | AK6: 1.01 | AL6: 1.01 | AM6: 1.01 | AN6: 1.01 | AO6: 1.01 | AP6: 1.01 | AQ6: 1.01
A8: Costs per kilometre | B8: 1.41 | C8: 1.53 | D8: 1.6 | E8: 1.87 | F8: 1.84 | G8: 1.69 | H8: 1.67 | I8: 1.83 | J8: 1.74 | K8: 1.97 | L8: 1.8 | M8: 1.84 | N8: 1.73 | O8: 1.38 | P8: 2.36 | Q8: 1.94 | R8: 1.62 | S8: 1.59 | T8: 1.63 | U8: 1.68 | V8: 1.45 | W8: 1.41 | X8: 1.5 | Y8: 1.45 | Z8: 1.45 | AA8: 1.4 | AB8: 1.27 | AC8: 1.23 | AD8: 1.64 | AE8: 1.59 | AF8: 2.21 | AG8: 3.21 | AH8: 1.53 | AI8: 1.57 | AJ8: 1.52 | AK8: 1.33 | AL8: 1.72 | AM8: 1.59 | AN8: 1.64 | AO8: 1.59 | AP8: 1.4 | AQ8: 1.77
A9: Costs per hour | B9: 43.36 | C9: 47.09 | D9: 49.28 | E9: 57.29 | F9: 56.68 | G9: 59.96 | H9: 59.35 | I9: 49.52 | J9: 46.96 | K9: 68.24 | L9: 62.57 | M9: 63.75 | N9: 60.15 | O9: 57.2 | P9: 50.13 | Q9: 64.43 | R9: 68.57 | S9: 67.52 | T9: 61.89 | U9: 63.59 | V9: 72.66 | W9: 70.33 | X9: 71.51 | Y9: 69.22 | Z9: 72.3 | AA9: 69.97 | AB9: 76.14 | AC9: 73.75 | AD9: 68.84 | AE9: 66.7 | AF9: 88.6 | AG9: 116.63 | AH9: 76.28 | AI9: 75.12 | AJ9: 76 | AK9: 79.68 | AL9: 72.15 | AM9: 76.57 | AN9: 75.41 | AO9: 76.29 | AP9: 79.99 | AQ9: 72.54
A10: Average speed (km/h) | B10: =B9/B8 -> 30.75177305 | C10: 30.77777778 | D10: 30.8 | E10: =E9/E8 -> 30.63636364 | F10: =F9/F8 -> 30.80434783 | G10: =G9/G8 -> 35.47928994 | H10: =H9/H8 -> 35.53892216 | I10: 27.06010929 | J10: 26.98850575 | K10: 34.63959391 | L10: 34.76111111 | M10: 34.64673913 | N10: 34.76878613 | O10: 41.44927536 | P10: 21.24152542 | Q10: 33.21134021 | R10: 42.32716049 | S10: 42.46540881 | T10: 37.96932515 | U10: 37.85119048 | V10: 50.11034483 | W10: 49.87943262 | X10: 47.67333333 | Y10: 47.73793103 | Z10: 49.86206897 | AA10: 49.97857143 | AB10: 59.95275591 | AC10: 59.95934959 | AD10: 41.97560976 | AE10: 41.94968553 | AF10: 40.09049774 | AG10: 36.33333333 | AH10: 49.85620915 | AI10: 47.84713376 | AJ10: 50 | AK10: 59.90977444 | AL10: 41.94767442 | AM10: 48.1572327 | AN10: 45.98170732 | AO10: 47.98113208 | AP10: 57.13571429 | AQ10: 40.98305085
A11: Fixed costs per hour | B11: =(110051-25360)/2538 -> 33.36918834 | C11: =(119504-31940)/2538 -> 34.50118203 | D11: =(125066-36282)/2538 -> 34.98187549 | E11: =(146169-47323)/2538 -> 38.9464145 | F11: =(143845-44670)/2538 -> 39.07604413 | G11: =(152173-52502)/2538 -> 39.2714736 | H11: =(150635-50405)/2538 -> 39.49172577 | I11: =(128362-36017)/2592 -> 35.62692901 | J11: =(121711-32596)/2592 -> 34.38078704 | K11: =(176868-64382)/2592 -> 43.39737654 | L11: =(162174-56912)/2592 -> 40.61033951 | M11: =(165233-53675)/2592 -> 43.03935185 | N11: =(155908-50277)/2592 -> 40.75270062 | O11: =(145178-54683)/2538 -> 35.65602837 | P11: =(117913-37405)/2352 -> 34.22959184 | Q11: =(151528-53994)/2352 -> 41.46853741 | R11: =(177737-65832)/2592 -> 43.17322531 | S11: =(175006-66186)/2592 -> 41.98302469 | T11: =(163387-61281)/2640 -> 38.67651515 | U11: =(167871-65014)/2640 -> 38.96098485 | V11: =(188928-71469)/2600 -> 45.17653846 | W11: =(182865-66882)/2600 -> 44.60884615 | X11: =(186990-69325)/2615 -> 44.99617591 | Y11: =(181003-64804)/2615 -> 44.43556405 | Z11: =(209663-78931)/2900 -> 45.08 | AA11: =(202908-73780)/2900 -> 44.52689655 | AB11: =(228427-93514)/3000 -> 44.971 | AC11: =(221261-87970)/3000 -> 44.43033333 | AD11: =(205131-72827)/2980 -> 44.39731544 | AE11: =(198760-67911)/2980 -> 43.9090604 | AF11: =(231699-54442)/2615 -> 67.78470363 | AG11: =(304982-49257)/2615 -> 97.791587 | AH11: =(198331-72746)/2600 -> 48.30192308 | AI11: =(196437-70636)/2615 -> 48.10745698 | AJ11: =(220398-80413)/2900 -> 48.27068966 | AK11: =(239054-94829)/3000 -> 48.075 | AL11: =(215009-74584)/2980 -> 47.12248322 | AM11: =(199089-72318)/2600 -> 48.75807692 | AN11: =(197184-70045)/2615 -> 48.61912046 | AO11: =(222385-80327)/2915 -> 48.73344768 | AP11: =(238375-93451)/2980 -> 48.63221477 | AQ11: =(216164-74521)/2980 -> 47.53120805

Sheet Info list box (hidden)
A1: Area | B1: Market segment | C1: Vehicle type
A2: Inland | B2: General distribution traffic | C2: Light truck <12 tons | F2: Inland | G2: Market_segmentB
A3: Cross-border | B3: Truck load transport | C3: Truck 12-16 tons | F3: Cross-border | G3: Market_segmentG
B4: Refrigerated transport | C4: Truck, 16 tons and over
B5: Sea container transport | C5: Truck + trailer | F5: General distribution traffic | G5: Vehicle_type1
B6: Tipper transport | C6: Tractor + semi-trailer | F6: Truck load transport | G6: Vehicle_type2
B7: Tank transport | F7: Refrigerated transport | G7: Vehicle_type3
B8: Bulk transport | C8: Truck + trailer | F8: Sea container transport | G8: Vehicle_type4
B9: Super lorries (LHVs) | C9: Tractor + semi-trailer | F9: Tipper transport | G9: Vehicle_type5
F10: Tank transport | G10: Vehicle_type6
B11: Transport to Germany | C11: Solo, including refrigerator aggregate | F11: Bulk transport | G11: Vehicle_type6
B12: Transport to France | C12: Solo, isotherm | F12: Super lorries (LHVs) | G12: Vehicle_type7
B13: Transport to Italy | C13: Truck + trailer, incl. refrigerator aggregate | F13: Transport to Germany | G13: Vehicle_type2
B14: Transport to Spain | C14: Truck + trailer, isotherm | F14: Transport to France | G14: Vehicle_type2
B15: Transport to Poland | C15: Tractor + semi-trailer, incl. refrigerator aggregate | F15: Transport to Italy | G15: Vehicle_type2
B16: Transport to England | C16: Tractor + semi-trailer, isotherm | F16: Transport to Spain | G16: Vehicle_type2
B17: Refrigerated transport Germany | F17: Transport to Poland | G17: Vehicle_type2
B18: Refrigerated transport France | C18: Tractor + semi-trailer chassis | F18: Transport to England | G18: Vehicle_type8
B19: Refrigerated transport Italy | F19: Refrigerated transport Germany | G19: Vehicle_type6
B20: Refrigerated transport Spain | C20: Solo truck | F20: Refrigerated transport France | G20: Vehicle_type6
B21: Refrigerated transport Poland | C21: Truck + trailer | F21: Refrigerated transport Italy | G21: Vehicle_type6
B22: Tank transport Germany | F22: Refrigerated transport Spain | G22: Vehicle_type6
B23: Tank transport France | C23: Tractor + semi-trailer | F23: Refrigerated transport Poland | G23: Vehicle_type6
B24: Tank transport Italy | F24: Tank transport Germany | G24: Vehicle_type6
B25: Tank transport Spain | C25: Tractor + semi-trailer + central axle trailer | F25: Tank transport France | G25: Vehicle_type6
B26: Tank transport Poland | C26: Truck + dolly + semi-trailer | F26: Tank transport Italy | G26: Vehicle_type6
F27: Tank transport Spain | G27: Vehicle_type6
C28: Tractor + semi-trailer; via Eurotunnel | F28: Tank transport Poland | G28: Vehicle_type6
C29: Tractor + semi-trailer; via ferry
A36: Area | B36: Market segment | C36: Vehicle type
A37: Cross-border | B37: Refrigerated transport Italy
